fUST/lending_fUST_20250421
["ID","MTS","AMOUNT","RATE_DAILY","PERIOD"]
[358553551,1745249432837,-926.17468584,0.00021917,5]
[358553552,1745249432849,-500.0,0.00021917,2]
[358553553,1745249432859,-500.0,0.00021917,2]
[358553554,1745249432868,-500.0,0.00021917,2]
[358553555,1745249432879,-509.1247754,0.00021917,2]
[358553564,1745249438927,-9196.1952246,0.00021917,2]
[358553565,1745249438938,-500.0,0.00021917,2]
[358553566,1745249438948,-250.95123777,0.00021917,2]
[358553567,1745249438967,-249.04876223,0.00021917,2]
[358553568,1745249438977,-424.53372303,0.00021917,2]
[358553569,1745249438986,-279.04715497,0.00021917,2]
[358553570,1745249438996,-500.0,0.00021917,2]
[358553571,1745249439006,-500.0,0.00021917,2]
[358553572,1745249439016,-500.0,0.00021917,2]
[358553573,1745249439025,-500.0,0.00021917,2]
[358553574,1745249439034,-254.30333564,0.00021917,2]
[358553575,1745249439046,-245.69666436,0.00021917,2]
[358553576,1745249439056,-500.0,0.00021917,2]
[358553577,1745249439065,-572.71,0.00021917,2]
[358553578,1745249439074,-2094.56,0.00021917,2]
[358553579,1745249439084,-500.0,0.00021917,2]
[358553580,1745249439094,-500.0,0.00021917,2]
[358553581,1745249439103,-500.0,0.00021917,2]
[358553582,1745249439113,-500.0,0.00021917,2]
[358553583,1745249439122,-500.0,0.00021917,2]
[358553584,1745249439132,-500.0,0.00021917,2]
[358553585,1745249439141,-500.0,0.00021917,2]
[358553586,1745249439150,-500.0,0.00021917,2]
[358553587,1745249439160,-500.0,0.00021917,2]
[358553588,1745249439170,-500.0,0.00021917,2]
[358553589,1745249439179,-447.82517936,0.00021917,2]
[358553590,1745249439188,-500.0,0.00021917,2]
[358553592,1745249439198,-574.34,0.00021917,2]
[358553593,1745249439207,-151.0,0.00021917,2]
[358553594,1745249439217,-151.0,0.00021917,2]
[358553595,1745249439228,-151.0,0.00021917,2]
[358553596,1745249439237,-500.0,0.00021917,2]
[358553597,1745249439247,-500.0,0.00021917,2]
[358553598,1745249439256,-500.0,0.00021917,2]
[358553599,1745249439266,-1000.0,0.00021917,2]
[358553600,1745249439276,-500.0,0.00021917,2]
[358553601,1745249439286,-292.97980055,0.00021917,2]
[358553602,1745249439296,-500.0,0.00021917,2]
[358553603,1745249439305,-500.0,0.00021917,2]
[358553604,1745249439315,-500.0,0.00021917,2]
[358553605,1745249439325,-500.0,0.00021917,2]
[358553606,1745249439335,-167.88,0.00021917,2]
[358553607,1745249439345,-1359.89,0.00021917,2]
[358553608,1745249439354,-500.04892352,0.00021917,2]
[358553609,1745249439364,-500.0,0.00021917,2]
[358553610,1745249439374,-500.0,0.00021917,2]
[358553611,1745249439384,-500.0,0.00021917,2]
[358553612,1745249439394,-500.0,0.00021917,2]
[358553613,1745249439403,-245.93384186,0.00021917,2]
[358553614,1745249439413,-500.0,0.00021917,2]
[358553615,1745249439423,-500.0,0.00021917,2]
[358553616,1745249439432,-510.68213966,0.00021917,2]
[358553617,1745249439443,-500.0,0.00021917,2]
[358553618,1745249439453,-500.0,0.00021917,2]
[358553619,1745249439463,-500.0,0.00021917,2]
[358553620,1745249439473,-500.0,0.00021917,2]
[358553621,1745249439482,-500.0,0.00021917,2]
[358553622,1745249439493,-500.0,0.00021917,2]
[358553623,1745249439503,-200.05739167,0.00021917,2]
[358553624,1745249439512,-152.26790199,0.00021917,2]
[358553625,1745249439522,-500.0,0.00021917,2]
[358553626,1745249439532,-500.0,0.00021917,2]
[358553627,1745249439542,-1266.4,0.00021917,2]
[358553628,1745249439553,-252.20425759,0.00021917,2]
[358553629,1745249439564,-204.72513784,0.00021917,2]
[358553630,1745249439574,-500.0,0.00021917,2]
[358553631,1745249439584,-253.42,0.00021917,2]
[358553632,1745249439594,-500.0,0.00021917,2]
[358553633,1745249439604,-151.0,0.00022054,2]
[358553634,1745249439615,-151.0,0.00022054,2]
[358553635,1745249439625,-1266.4,0.0002219,2]
[358553636,1745249439635,-500.0,0.0002219,2]
[358553637,1745249439645,-500.0,0.0002219,2]
[358553638,1745249439655,-500.0,0.0002219,2]
[358553639,1745249439668,-247.89050482,0.0002219,2]
[358553640,1745249439678,-198.0,0.00022191,2]
[358553641,1745249439688,-198.0,0.00022191,2]
[358553642,1745249439699,-500.0,0.00022191,2]
[358553643,1745249439709,-500.0,0.00022191,2]
[358553644,1745249439719,-500.0,0.00022191,2]
[358553645,1745249439729,-9705.32,0.00022191,2]
[358553646,1745249439738,-500.0,0.00022191,2]
[358553647,1745249439748,-500.0,0.00022191,2]
[358553648,1745249439757,-500.0,0.00022191,2]
[358553649,1745249439767,-2094.56,0.00022191,2]
[358553650,1745249439777,-500.0,0.00022191,2]
[358553651,1745249439787,-500.0,0.00022191,2]
[358553652,1745249439797,-500.0,0.00022191,2]
[358553653,1745249439809,-1359.89,0.00022191,2]
[358553654,1745249439819,-500.0,0.00022191,2]
[358553655,1745249439828,-500.0,0.00022191,2]
[358553656,1745249439839,-434.04442622,0.00022191,2]
[358553657,1745249439849,-500.0,0.00022191,2]
[358553658,1745249439859,-500.0,0.00022191,2]
[358553659,1745249439868,-500.0,0.00022191,2]
[358553660,1745249439879,-500.0,0.00022191,2]
[358553661,1745249439889,-500.0,0.00022191,2]
[358553662,1745249439899,-500.0,0.00022191,2]
[358553663,1745249439909,-500.0,0.000223,2]
[358553664,1745249439919,-500.0,0.000223,2]
[358553665,1745249439928,-500.0,0.000223,2]
[358553666,1745249439938,-500.0,0.000223,2]
[358553667,1745249439948,-300.0,0.000223,2]
[358553668,1745249439958,-500.0,0.00022372,2]
[358553669,1745249439968,-500.0,0.00022372,2]
[358553670,1745249439977,-500.0,0.00022372,2]
[358553671,1745249439987,-1003.81262724,0.00022464,2]
[358553672,1745249439997,-500.0,0.00022465,2]
[358553673,1745249440007,-500.0,0.00022465,2]
[358553674,1745249440017,-500.0,0.00022465,2]
[358553675,1745249440028,-9705.32,0.00022465,2]
[358553676,1745249440038,-500.0,0.00022465,2]
[358553677,1745249440048,-500.0,0.00022465,2]
[358553678,1745249440058,-500.0,0.00022465,2]
[358553679,1745249440068,-2094.56,0.00022465,2]
[358553680,1745249440079,-500.0,0.00022465,2]
[358553681,1745249440090,-500.0,0.00022465,2]
[358553682,1745249440099,-500.0,0.00022465,2]
[358553683,1745249440109,-1359.89,0.00022465,2]
[358553684,1745249440119,-500.0,0.00022465,2]
[358553685,1745249440130,-500.0,0.00022465,2]
[358553686,1745249440141,-500.0,0.00022465,2]
[358553687,1745249440153,-500.0,0.00022465,2]
[358553689,1745249440163,-151.0,0.000227,6]
[358553690,1745249440172,-500.0,0.00022739,2]
[358553691,1745249440181,-500.0,0.00022739,2]
[358553692,1745249440190,-9705.32,0.00022739,2]
[358553693,1745249440201,-500.0,0.00022739,2]
[358553694,1745249440211,-500.0,0.00022739,2]
[358553695,1745249440220,-500.0,0.00022739,2]
[358553696,1745249440230,-2094.56,0.00022739,2]
[358553698,1745249440240,-500.0,0.00022739,2]
[358553699,1745249440249,-500.0,0.00022739,2]
[358553700,1745249440260,-500.0,0.00022739,2]
[358553701,1745249440269,-1359.89,0.00022739,2]
[358553702,1745249440279,-500.0,0.00022739,2]
[358553703,1745249440288,-500.0,0.00022739,2]
[358553704,1745249440299,-156.39289221,0.00022739,2]
[358553705,1745249440309,-500.0,0.00022739,2]
[358553706,1745249440319,-264.76075192,0.00022913,2]
[358553707,1745249440329,-500.0,0.00022926,2]
[358553708,1745249440339,-151.0,0.00023,5]
[358553709,1745249440348,-500.0,0.00023013,2]
[358553710,1745249440358,-500.0,0.00023013,2]
[358553711,1745249440368,-9705.32,0.00023013,2]
[358553712,1745249440377,-500.0,0.00023013,2]
[358553713,1745249440524,-500.0,0.00023013,2]
[358553714,1745249440534,-500.0,0.00023013,2]
[358553715,1745249440545,-2094.56,0.00023013,2]
[358553716,1745249440555,-150.39,0.00023013,2]
[358553717,1745249440566,-500.0,0.00023013,2]
[358553718,1745249440578,-500.0,0.00023013,2]
[358553719,1745249440588,-1359.89,0.00023013,2]
[358553720,1745249440598,-209.97,0.00023013,2]
[358553721,1745249440607,-500.0,0.00023013,2]
[358553722,1745249440617,-500.0,0.00023013,2]
[358553723,1745249440626,-500.0,0.00023117,2]
[358553724,1745249440636,-500.0,0.00023287,2]
[358553725,1745249440646,-193.16,0.00023287,2]
[358553726,1745249440655,-9705.32,0.00023287,2]
[358553727,1745249440665,-500.0,0.00023287,2]
[358553728,1745249440674,-500.0,0.00023287,2]
[358553729,1745249440684,-500.0,0.00023287,2]
[358553730,1745249440694,-2094.56,0.00023287,2]
[358553731,1745249440704,-500.0,0.00023287,2]
[358553732,1745249440713,-500.0,0.00023287,2]
[358553733,1745249440722,-1359.89,0.00023287,2]
[358553734,1745249440732,-500.0,0.00023287,2]
[358553735,1745249440741,-500.0,0.00023287,2]
[358553736,1745249440751,-264.76075191,0.00023393,2]
[358553737,1745249440760,-151.0,0.000234,6]
[358553738,1745249440770,-256.94,0.00023561,2]
[358553739,1745249440779,-9705.32,0.00023561,2]
[358553740,1745249440789,-500.0,0.00023561,2]
[358553741,1745249440801,-500.0,0.00023561,2]
[358553742,1745249440810,-500.0,0.00023561,2]
[358553743,1745249440819,-2094.56,0.00023561,2]
[358553744,1745249440828,-500.0,0.00023561,2]
[358553745,1745249440838,-500.0,0.00023561,2]
[358553746,1745249440848,-1359.89,0.00023561,2]
[358553747,1745249440857,-500.0,0.00023561,2]
[358553748,1745249440867,-500.0,0.00023561,2]
[358553749,1745249440878,-151.0,0.000237,5]
[358553750,1745249440887,-420.0,0.00023816,2]
[358553751,1745249440897,-9705.32,0.00023835,2]
[358553752,1745249440906,-500.0,0.00023835,2]
[358553753,1745249440915,-500.0,0.00023835,2]
[358553754,1745249440924,-500.0,0.00023835,2]
[358553755,1745249440933,-2094.56,0.00023835,2]
[358553756,1745249440942,-500.0,0.00023835,2]
[358553757,1745249440952,-500.0,0.00023835,2]
[358553758,1745249440961,-1359.89,0.00023835,2]
[358553759,1745249440970,-500.0,0.00023835,2]
[358553760,1745249440980,-500.0,0.00023835,2]
[358553761,1745249440989,-264.76075191,0.00023872,2]
[358553762,1745249440999,-420.0,0.00023929,2]
[358553763,1745249441008,-600.0,0.00023944,2]
[358553764,1745249441017,-151.0,0.00024,10]
[358553765,1745249441026,-1266.4,0.00024108,2]
[358553766,1745249441035,-9705.32,0.00024109,2]
[358553767,1745249441045,-500.0,0.00024109,2]
[358553768,1745249441054,-500.0,0.00024109,2]
[358553770,1745249441064,-500.0,0.00024109,2]
[358553772,1745249441074,-2094.56,0.00024109,2]
[358553773,1745249441084,-505.06,0.00024109,2]
[358553774,1745249441093,-500.0,0.00024109,2]
[358553775,1745249441102,-500.0,0.00024109,2]
[358553776,1745249441111,-500.0,0.00024109,2]
[358553777,1745249441121,-250.01037945,0.00024109,2]
[358553778,1745249441130,-1359.89,0.00024109,2]
[358553779,1745249441139,-473.82,0.00024109,2]
[358553780,1745249441149,-500.0,0.00024109,2]
[358553781,1745249441158,-151.0,0.000243,8]
[358553782,1745249441167,-160.0,0.00024306,2]
[358553783,1745249441177,-12562.5629343,0.00024306,2]
[358553784,1745249441186,-160.0,0.00024306,2]
[358553785,1745249441195,-729.16666667,0.00024309,2]
[358553786,1745249441205,-264.76075191,0.00024352,2]
[358553787,1745249441214,-9705.32,0.00024383,2]
[358553788,1745249441223,-500.0,0.00024383,2]
[358553789,1745249441232,-198.88,0.00024383,2]
[358553790,1745249441241,-500.0,0.00024383,2]
[358553791,1745249441251,-2094.56,0.00024383,2]
[358553792,1745249441260,-1359.89,0.00024383,2]
[358553793,1745249441269,-500.0,0.00024383,2]
[358553794,1745249441278,-151.0,0.000245,5]
[358553795,1745249441289,-1297.56754869,0.00024558,2]
[358553796,1745249441300,-151.0,0.000246,10]
[358553797,1745249441309,-1266.4,0.0002465,2]
[358553798,1745249441319,-1266.4,0.0002465,2]
[358553799,1745249441328,-1266.4,0.0002465,2]
[358553800,1745249441337,-45115.3987709,0.00024651,2]
[358553801,1745249441346,-9705.32,0.00024657,2]
[358553802,1745249441356,-500.0,0.00024657,2]
[358553803,1745249441365,-500.0,0.00024657,2]
[358553804,1745249441375,-2094.56,0.00024657,2]
[358553805,1745249441383,-1359.89,0.00024657,2]
[358553806,1745249441393,-500.0,0.00024657,2]
[358553807,1745249441402,-500.0,0.00024658,2]
[358553808,1745249441411,-500.0,0.00024658,2]
[358553809,1745249441420,-252.00619971,0.00024658,2]
[358553810,1745249441430,-151.0,0.000247,9]
[358553811,1745249441439,-1158.44269176,0.00024717,2]
[358553812,1745249441450,-1266.4,0.00024799,2]
[358553813,1745249441460,-1266.4,0.00024799,2]
[358553814,1745249441470,-21081.1653368,0.000248,2]
[358553815,1745249441479,-264.76075191,0.00024831,2]
[358553816,1745249441488,-4216.23306735,0.00024851,2]
[358553817,1745249441498,-6236.41939463,0.00024854,2]
[358553818,1745249441508,-6236.41939463,0.00024861,2]
[358553819,1745249441518,-500.0,0.00024873,2]
[358553820,1745249441527,-500.0,0.00024873,2]
[358553821,1745249441538,-500.0,0.00024873,2]
[358553822,1745249441548,-500.0,0.00024873,2]
[358553823,1745249441557,-298.16591741,0.00024873,2]
[358553824,1745249441567,-500.0,0.00024873,2]
[358553825,1745249441576,-500.0,0.00024873,2]
[358553826,1745249441586,-500.0,0.00024873,2]
[358553827,1745249441596,-500.0,0.00024873,2]
[358553828,1745249441605,-500.0,0.00024873,2]
[358553829,1745249441615,-1266.4,0.00024875,2]
[358553830,1745249441624,-4216.23306735,0.00024876,2]
[358553831,1745249441633,-1266.4,0.00024877,2]
[358553832,1745249441643,-14551.64525414,0.00024878,2]
[358553833,1745249441652,-4216.23306735,0.00024879,2]
[358553834,1745249441661,-1266.4,0.00024885,2]
[358553835,1745249441671,-12472.83878925,0.00024886,2]
[358553836,1745249441680,-6236.41939463,0.00024886,2]
[358553837,1745249441690,-1266.4,0.00024887,2]
[358553838,1745249441699,-1266.4,0.00024887,2]
[358553839,1745249441708,-12472.83878925,0.00024887,2]
[358553840,1745249441718,-12472.83878925,0.00024888,2]
[358553841,1745249441727,-14551.64525414,0.00024888,2]
[358553842,1745249441736,-1266.4,0.00024888,2]
[358553843,1745249441746,-12472.83878925,0.00024889,2]
[358553844,1745249441755,-14551.64525414,0.0002489,2]
[358553845,1745249441765,-1266.4,0.00024891,2]
[358553846,1745249441774,-14551.64525414,0.00024891,2]
[358553847,1745249441783,-1266.4,0.00024899,2]
[358553848,1745249441792,-1266.4,0.00024899,2]
[358553849,1745249441802,-1266.4,0.00024899,2]
[358553850,1745249441815,-1266.4,0.00024899,2]
[358553851,1745249441824,-1266.4,0.00024899,2]
[358553852,1745249441833,-1266.4,0.00024899,2]
[358553853,1745249441842,-1266.4,0.00024899,2]
[358553854,1745249441852,-1266.4,0.00024899,2]
[358553855,1745249441862,-1266.53824272,0.00024899,2]
[358553856,1745249441871,-6236.41939463,0.00024899,2]
[358553857,1745249441883,-651838.251285,0.000249,2]
[358553858,1745249441893,-650.37818157,0.000249,2]
[358553859,1745249441902,-4216.23306735,0.00024921,2]
[358553860,1745249441911,-9705.32,0.00024931,2]
[358553861,1745249441921,-500.0,0.00024931,2]
[358553862,1745249441932,-603.03,0.00024931,2]
[358553863,1745249441941,-2094.56,0.00024931,2]
[358553864,1745249441951,-1359.89,0.00024931,2]
[358553865,1745249441961,-500.0,0.00024931,2]
[358553866,1745249441970,-506.36,0.00025,2]
[358553867,1745249441980,-733.0,0.00025,5]
[358553868,1745249441989,-33152.00992592,0.00025,7]
[358553869,1745249441998,-839.72553703,0.00025,2]
[358553870,1745249442008,-99800.0,0.00025,2]
[358553871,1745249442018,-172.0,0.00025,2]
[358553872,1745249442027,-600.4535579,0.00025,2]
[358553873,1745249442039,-669.14502794,0.00025001,30]
[358553874,1745249442048,-9705.32,0.00025205,2]
[358553875,1745249442058,-500.0,0.00025205,2]
[358553876,1745249442067,-2094.56,0.00025205,2]
[358553877,1745249442079,-1359.89,0.00025205,2]
[358553878,1745249442089,-500.0,0.00025205,2]
[358553879,1745249442098,-900.0,0.00025469,3]
[358553880,1745249442107,-9705.32,0.00025479,2]
[358553881,1745249442117,-500.0,0.00025479,2]
[358553882,1745249442127,-2094.56,0.00025479,2]
[358553883,1745249442136,-1359.89,0.00025479,2]
[358553884,1745249442145,-500.0,0.00025479,2]
[358553885,1745249442157,-4216.23306735,0.0002549,2]
[358553886,1745249442166,-15019.08774159,0.000255,2]
[358553887,1745249442175,-1000.0,0.000255,2]
[358553888,1745249442185,-900.0,0.00025588,2]
[358553889,1745249442194,-9705.32,0.00025753,2]
[358553890,1745249442204,-431.82,0.00025753,2]
[358553891,1745249442213,-2094.56,0.00025753,2]
[358553892,1745249442222,-1359.89,0.00025753,2]
[358553893,1745249442231,-500.0,0.00025753,2]
[358553894,1745249442241,-587.0,0.00025883,2]
[358553895,1745249442250,-3000.0,0.00026,14]
[358553896,1745249442259,-517.41566205,0.00026,2]
[358553897,1745249442269,-19900.0,0.00026,2]
[358553898,1745249442278,-7757.0,0.00026,2]
[358553899,1745249442288,-9705.32,0.00026027,2]
[358553900,1745249442297,-2094.56,0.00026027,2]
[358553901,1745249442307,-1359.89,0.00026027,2]
[358553902,1745249442317,-500.0,0.00026027,2]
[358553903,1745249442326,-587.0,0.00026128,2]
[358553904,1745249442336,-4216.23306735,0.00026291,2]
[358553905,1745249442353,-9705.32,0.00026301,2]
[358553906,1745249442365,-2094.56,0.00026301,2]
[358553907,1745249442375,-1359.89,0.00026301,2]
[358553908,1745249442384,-384.6,0.00026301,2]
[358553909,1745249442395,-9705.32,0.00026575,2]
[358553910,1745249442405,-2094.56,0.00026575,2]
[358553911,1745249442415,-1359.89,0.00026575,2]
[358553912,1745249442424,-151.0,0.000266,13]
[358553913,1745249442434,-102632.22736617,0.000268,4]
[358553914,1745249442444,-9705.32,0.00026849,2]
[358553915,1745249442454,-2094.56,0.00026849,2]
[358553916,1745249442464,-1359.89,0.00026849,2]
[358553917,1745249442474,-151.0,0.00027,19]
[358553918,1745249442484,-3000.0,0.00027,14]
[358553919,1745249442494,-312.84021666,0.00027,3]
[358553920,1745249442504,-312.84021666,0.00027,3]
[358553921,1745249442513,-3657.21139561,0.00027,2]
[358553922,1745249442524,-339.40491329,0.00027,2]
[358553923,1745249442533,-4216.23306735,0.00027113,2]
[358553924,1745249442543,-9705.32,0.00027123,2]
[358553925,1745249442553,-2094.56,0.00027123,2]
[358553926,1745249442563,-1359.89,0.00027123,2]
[358553927,1745249442624,-1200.0,0.00027232,2]
[358553928,1745249442635,-500.0,0.00027373,2]
[358553929,1745249442645,-4216.23306735,0.00027387,2]
[358553930,1745249442654,-160.0,0.00027397,3]
[358553931,1745249442663,-1000.0,0.00027397,5]
[358553932,1745249442673,-1000.0,0.00027397,5]
[358553933,1745249442682,-1000.0,0.00027397,5]
[358553934,1745249442691,-1000.0,0.00027397,5]
[358553935,1745249442701,-1000.0,0.00027397,5]
[358553936,1745249442710,-359.91214918,0.00027397,5]
[358553937,1745249442720,-160.0,0.00027397,3]
[358553938,1745249442729,-9705.32,0.00027397,2]
[358553939,1745249442739,-2094.56,0.00027397,2]
[358553940,1745249442748,-160.0,0.00027397,3]
[358553941,1745249442758,-420.65680271,0.00027397,3]
[358553942,1745249442767,-1359.89,0.00027397,2]
[358553943,1745249442776,-10000.0,0.00027397,2]
[358553944,1745249442786,-10000.0,0.00027397,3]
[358553945,1745249442796,-10000.0,0.00027397,4]
[358553946,1745249442809,-10000.0,0.00027397,5]
[358553947,1745249442819,-10000.0,0.00027397,6]
[358553948,1745249442829,-3583.25230198,0.00027397,7]
[358553949,1745249442839,-1002.004042,0.00027397,2]
[358553950,1745249442848,-196.341091,0.00027397,120]
[358553951,1745249442858,-44980.47359172,0.000275,2]
[358553952,1745249442867,-324.5,0.00027561,15]
[358553953,1745249442877,-4216.23306735,0.00027661,2]
[358553954,1745249442887,-9705.32,0.00027671,2]
[358553955,1745249442898,-2094.56,0.00027671,2]
[358553956,1745249442907,-1359.89,0.00027671,2]
[358553957,1745249442917,-1000.0,0.00027779,5]
[358553959,1745249442926,-1000.0,0.00027779,5]
[358553961,1745249442935,-1000.0,0.00027779,5]
[358553963,1745249442944,-1000.0,0.00027779,5]
[358553965,1745249442954,-506.63523273,0.00027852,5]
[358553966,1745249442964,-1000.0,0.00027852,5]
[358553968,1745249442973,-1000.0,0.00027852,5]
[358553970,1745249442982,-9705.32,0.00027945,2]
[358553972,1745249442992,-2094.56,0.00027945,2]
[358553974,1745249443001,-1359.89,0.00027945,2]
[358553976,1745249443010,-370.70491285,0.00027945,5]
[358553977,1745249443019,-32421.38034658,0.0002799,2]
[358553979,1745249443030,-3000.0,0.00028,14]
[358553982,1745249443040,-823.0,0.00028128,2]
[358553984,1745249443049,-9705.33096725,0.00028219,2]
[358553986,1745249443059,-2094.65432633,0.00028219,2]
[358553988,1745249443068,-1359.9336,0.00028219,2]
[358553990,1745249443077,-1000.0,0.00028405,2]
[358553991,1745249443087,-823.0,0.00028528,2]
[358553992,1745249443096,-1000.0,0.00028596,5]
[358553993,1745249443106,-167.00711413,0.000288,7]
[358553994,1745249443116,-1500.0,0.00028875,5]
[358553995,1745249443125,-4216.23306735,0.0002897,2]
[358553996,1745249443135,-21081.1653368,0.0002899,2]
[358553997,1745249443145,-70795.77648913,0.00029,2]
[358553998,1745249443154,-12763.73508862,0.00029,3]
[358553999,1745249443164,-20812.85526146,0.00029,7]
[358554001,1745249443173,-20812.85526146,0.00029,7]
[358554002,1745249443184,-107763.31125721,0.00029,7]
[358554004,1745249443194,-107763.31125721,0.00029,7]
[358554006,1745249443204,-160.0,0.00029,7]
[358554009,1745249443214,-160.0,0.00029,7]
[358554010,1745249443224,-160.0,0.00029,7]
[358554011,1745249443235,-872.06200421,0.00029,2]
[358554012,1745249443245,-420.65680271,0.00029,7]
[358554013,1745249443255,-563.43736002,0.00029318,2]
[358554014,1745249443264,-1158.44269176,0.00029717,2]
[358554015,1745249443274,-200.0,0.000299,120]
[358554016,1745249443283,-200.0,0.000299,120]
[358554017,1745249443293,-155.0,0.00029973,5]
[358554018,1745249443303,-3000.0,0.0003,14]
[358554019,1745249443313,-245983.22644408,0.0003,7]
[358554020,1745249443323,-309.18937058,0.0003,15]
[358554021,1745249443332,-100897.72388452,0.0003,10]
[358554022,1745249443341,-277.0,0.0003,2]
[358554023,1745249443351,-2000.0,0.0003,4]
[358554024,1745249443360,-250.0,0.00030112,5]
[358554025,1745249443369,-730.05671297,0.00030352,5]
[358554027,1745249443378,-1000.0,0.00030352,5]
[358554028,1745249443388,-1000.0,0.00030352,5]
[358554029,1745249443397,-1000.0,0.00030352,5]
[358554030,1745249443406,-1000.0,0.00030352,5]
[358554031,1745249443416,-517.14731367,0.00030352,5]
[358554032,1745249443425,-1000.0,0.00030352,5]
[358554033,1745249443435,-1000.0,0.00030352,5]
[358554034,1745249443445,-1000.0,0.00030352,5]
[358554035,1745249443456,-1800.0,0.00030519,5]
[358554036,1745249443466,-265.85642887,0.00030521,5]
[358554037,1745249443475,-1152.0,0.00030569,2]
[358554038,1745249443484,-301.30817792,0.0003099,2]
[358554039,1745249443494,-1002.004042,0.0003105,2]
[358554040,1745249443503,-1152.0,0.00031148,3]
[358554041,1745249443513,-183.54667076,0.00031369,7]
[358554042,1745249443523,-200.0,0.000316,120]
[358554043,1745249443532,-200.0,0.000316,120]
[358554044,1745249443542,-3000.0,0.00032,14]
[358554045,1745249443553,-2100.0,0.00032163,5]
[358554046,1745249443563,-250.0,0.00032252,5]
[358554047,1745249443572,-1000.0,0.00032852,5]
[358554048,1745249443582,-350.0,0.00032852,5]
[358554049,1745249443592,-76.79383844,0.00032876,30]
[358554050,1745249443666,-223.20616156,0.00032876,30]
[358554051,1745249443678,-300.0,0.00032876,30]
[358554052,1745249443688,-300.0,0.00032876,30]
[358554053,1745249443698,-300.0,0.00032876,30]
[358554054,1745249443708,-300.0,0.00032876,30]
[358554055,1745249443718,-300.0,0.00032876,30]
[358554056,1745249443727,-300.0,0.00032876,30]
[358554058,1745249443737,-300.0,0.00032876,30]
[358554060,1745249443747,-300.0,0.00032876,30]
[358554062,1745249443756,-300.0,0.00032876,30]
[358554063,1745249443766,-300.0,0.00032876,30]
[358554064,1745249443776,-300.0,0.00032876,30]
[358554065,1745249443786,-291.80053248,0.00032876,30]
[358554066,1745249443796,-157.08990772,0.00032877,2]
[358554068,1745249443809,-209.82912428,0.00033,30]
[358554069,1745249443819,-653.91408926,0.00033,120]
[358554070,1745249443829,-277.0,0.00033,2]
[358554071,1745249443843,-277.0,0.00033,2]
[358554072,1745249443852,-267.0,0.00033221,2]
[358554073,1745249443862,-17024.8032968,0.00033264,2]
[358554074,1745249443871,-200.0,0.00033264,30]
[358554075,1745249443882,-200.0,0.000333,120]
[358554076,1745249443892,-200.0,0.000333,120]
[358554077,1745249443902,-237.807928,0.0003353,2]
[358554078,1745249443911,-986.26552735,0.00033807,5]
[358554079,1745249443921,-676.26,0.000339,30]
[358554080,1745249443931,-3000.0,0.00034,14]
[358554081,1745249443941,-199.57,0.00034,7]
[358554082,1745249443951,-1613.0,0.0003401,3]
[358554083,1745249443960,-196.341091,0.00034247,120]
[358554084,1745249443970,-1002.004042,0.00034703,2]
[358554085,1745249443980,-250.0,0.00034848,5]
[358554087,1745249443990,-3140.88712962,0.0003487,4]
[358554088,1745249443999,-7152.69924332,0.0003499,30]
[358554089,1745249444009,-173.34457611,0.00035,10]
[358554090,1745249444018,-3000.0,0.00035,14]